[Event "ESP-chT 2nd Division 2019"]
[Site "Linares"]
[Date "2019.08.20"]
[Round "3.12"]
[White "Glavina, Pablo"]
[Black "Silva Rodriguez, Julio Jose"]
[Result "1/2-1/2"]
[ECO "A64"]
[WhiteElo "2407"]
[BlackElo "2362"]
[Annotator "NA"]
[PlyCount "143"]
[EventDate "2019.08.19"]
[EventType "team-tourn"]
[EventCountry "ESP"]
[SourceTitle "playchess.com"]
[Source "ChessBase"]
[SourceQuality "1"]
[TimeControl "5400+30"]

1. d4 {[%emt 0:00:00]} Nf6 {[%emt 0:00:00]} 2. c4 {[%emt 0:00:01]} e6 {[%emt 0:00:06]} 3. g3 {[%emt 0:00:04]} c5 {[%emt 0:00:10]} 4. d5 {[%emt 0:00:04]} exd5 {[%emt 0:00:23]} 5. cxd5 {[%emt 0:00:05]} d6 {[%emt 0:00:10]} 6. Nc3 {[%emt 0:00:04]} g6 {[%emt 0:00:07]} 7. Nf3 {[%emt 0:00:05]} Bg7 {[%emt 0:00:06]} 8. Bg2 {[%emt 0:00:05]} O-O {[%emt 0:00:09]} 9. O-O {[%emt 0:00:06]} Re8 {[%emt 0:00:24]} 10. Nd2 {[%emt 0:00:15]} a6 {[%emt 0:00:26]} 11. a4 {[%emt 0:00:05]} Nbd7 {[%emt 0:00:11]} 12. Qb3 {[%emt 0:00:05]} Ne5 {[%emt 0:04:19]} 13. h3 {[%emt 0:00:20]} Rb8 {[%emt 0:02:06]} 14. f4 {[%emt 0:01:00]} Ned7 {[%emt 0:02:43]} 15. Nc4 {[%emt 0:00:19]} b5 {[%emt 0:06:55]} 16. axb5 {[%emt 0:00:38]} axb5 {[%emt 0:11:24]} 17. Nxb5 {[%emt 0:00:40]} Ne4 {[%emt 0:06:57]} 18. Qd3 {[%emt 0:07:01]} Rxb5 {[%emt 0:04:06]} 19. Bxe4 {[%emt 0:00:08]} Nf6 {[%emt 0:05:43]} 20. Bg2 {[%emt 0:10:59]} Bf5 {[%emt 0:01:06]} 21. e4 {[%emt 0:00:40]} Bxe4 {[%emt 0:06:08]} 22. Bxe4 {[%emt 0:00:05]} Nxe4 {[%emt 0:00:07]} 23. Re1 {[%emt 0:08:47]} f5 {[%emt 0:01:23]} 24. Kg2 {[%emt 0:06:18]} Rb4 {[%emt 0:02:28]} 25. Ra3 {[%emt 0:01:45]} Qd7 {[%emt 0:05:32]} 26. b3 {[%emt 0:00:52]} Reb8 {[%emt 0:05:09]} 27. Re2 {[%emt 0:02:10]} Qb5 {[%emt 0:01:04]} 28. Re3 {[%emt 0:08:23]} Bd4 {[%emt 0:02:02]} 29. Rf3 {[%emt 0:00:03]} Qb7 {[%emt 0:00:50]} 30. g4 {[%emt 0:03:30]} Qxd5 {[%emt 0:02:27]} 31. gxf5 {[%emt 0:00:08]} gxf5 {[%emt 0:00:20]} 32. Kh2 {[%emt 0:00:11]} Qb7 {[%emt 0:07:56]} 33. Be3 {[%emt 0:06:43]} Rxb3 {[%emt 0:02:55]} 34. Rxb3 {[%emt 0:00:08]} Qxb3 {[%emt 0:00:07]} 35. Bxd4 {[%emt 0:00:07]} Qxd3 {[%emt 0:00:09]} 36. Rxd3 {[%emt 0:00:08]} cxd4 {[%emt 0:00:05]} 37. Na5 {[%emt 0:01:22]} Rb2+ {[%emt 0:01:11]} 38. Kg1 {[%emt 0:00:04]} Rd2 {[%emt 0:08:19]} 39. Rxd2 {[%emt 0:00:06]} Nxd2 {[%emt 0:00:03]} 40. Nc6 {[%emt 0:00:05]} d3 {[%emt 0:01:22]} 41. Ne7+ {[%emt 0:00:15]} Kf7 {[%emt 0:00:39]} 42. Nxf5 {[%emt 0:00:04]} Ne4 {[%emt 0:00:41]} 43. Kf1 {[%emt 0:00:48]} d2 {[%emt 0:00:35]} 44. Ke2 {[%emt 0:00:08]} Ke6 {[%emt 0:00:46]} 45. Nd4+ {[%emt 0:00:56]} Kd5 {[%emt 0:00:07]} 46. Nf3 {[%emt 0:00:10]} Kc4 {[%emt 0:01:17]} 47. f5 {[%emt 0:02:46]} Kd5 {[%emt 0:00:54]} 48. h4 {[%emt 0:03:57]} h5 {[%emt 0:00:40]} 49. Kd1 {[%emt 0:00:43]} Nf6 {[%emt 0:05:02]} 50. Nxd2 {[%emt 0:01:52]} Ne8 {[%emt 0:03:28]} 51. Ke2 {[%emt 0:01:28]} Ke5 {[%emt 0:00:07]} 52. Kf3 {[%emt 0:00:08]} Kxf5 {[%emt 0:00:09]} 53. Ne4 {[%emt 0:00:35]} Ke5 {[%emt 0:01:07]} 54. Ng3 {[%emt 0:07:01]} Nf6 {[%emt 0:00:13]} 55. Ne2 {[%emt 0:03:01]} d5 {[%emt 0:00:11]} 56. Ke3 {[%emt 0:01:46]} Kf5 {[%emt 0:00:44]} 57. Kf3 {[%emt 0:00:07]} Ke5 {[%emt 0:00:21]} 58. Ke3 {[%emt 0:00:04]} Ng4+ {[%emt 0:00:29]} 59. Kf3 {[%emt 0:00:13]} d4 {[%emt 0:00:30]} 60. Nxd4 {[%emt 0:04:49]} Kxd4 {[%emt 0:00:22]} 61. Kf4 {[%emt 0:00:02]} Nf6 {[%emt 0:00:30]} 62. Kg5 {[%emt 0:00:02]} Ke5 {[%emt 0:00:19]} 63. Kg6 {[%emt 0:00:02]} Ke6 {[%emt 0:00:13]} 64. Kg5 {[%emt 0:00:03]} Kf7 {[%emt 0:00:43]} 65. Kh6 {[%emt 0:00:04]} Ke7 {[%emt 0:00:35]} 66. Kg6 {[%emt 0:00:10]} Ke6 {[%emt 0:01:31]} 67. Kg5 {[%emt 0:00:03]} Ke5 {[%emt 0:00:14]} 68. Kg6 {[%emt 0:00:04]} Kf4 {[%emt 0:00:21]} 69. Kxf6 {[%emt 0:00:04]} Kg4 {[%emt 0:00:04]} 70. Ke5 {[%emt 0:00:04]} Kxh4 {[%emt 0:00:06]} 71. Kf4 {[%emt 0:00:03]} Kh3 {[%emt 0:00:05]} 72. Ke4 1/2-1/2

[Event "ESP-chT 2nd Division 2019"]
[Site "Linares"]
[Date "2019.08.20"]
[Round "3.13"]
[White "Gavarrete, Nahun"]
[Black "Quintin Navarro, Alberto"]
[Result "1-0"]
[ECO "C78"]
[WhiteElo "2349"]
[BlackElo "2376"]
[Annotator "NA"]
[PlyCount "51"]
[EventDate "2019.08.19"]
[EventType "team-tourn"]
[EventCountry "ESP"]
[SourceTitle "playchess.com"]
[Source "ChessBase"]
[SourceQuality "1"]
[TimeControl "5400+30"]

1. e4 e5 {[%emt 0:00:00]} 2. Nf3 {[%emt 0:00:05]} Nc6 3. Bb5 {[%emt 0:02:10]} a6 {[%emt 0:00:16]} 4. Ba4 {[%emt 0:00:09]} Nf6 {[%emt 0:01:37]} 5. O-O {[%emt 0:01:31]} Bc5 {[%emt 0:00:15]} 6. c3 {[%emt 0:06:50]} b5 {[%emt 0:00:20]} 7. Bb3 {[%emt 0:00:05]} d6 {[%emt 0:00:45]} 8. d4 {[%emt 0:00:59]} Bb6 {[%emt 0:00:28]} 9. h3 {[%emt 0:00:08]} Bb7 {[%emt 0:02:59]} 10. Re1 {[%emt 0:03:48]} O-O {[%emt 0:01:54]} 11. Bg5 {[%emt 0:03:16]} h6 {[%emt 0:01:45]} 12. Bh4 {[%emt 0:00:17]} g5 {[%emt 0:04:11]} 13. Nxg5 {[%emt 0:18:08]} hxg5 {[%emt 0:00:22]} 14. Bxg5 {[%emt 0:00:03]} Kg7 {[%emt 0:00:56]} 15. Re3 {[%emt 0:01:41]} Qd7 {[%emt 0:12:30]} 16. Rg3 {[%emt 0:06:53]} Ne7 {[%emt 0:11:16]} 17. dxe5 {[%emt 0:31:10]} Bxf2+ {[%emt 0:06:06]} 18. Kh1 {[%emt 0:00:43]} Bxg3 {[%emt 0:00:25]} 19. Bxf6+ {[%emt 0:00:25]} Kg6 {[%emt 0:04:24]} 20. Qd2 {[%emt 0:04:13]} Bh4 {[%emt 0:00:29]} 21. Bxh4 {[%emt 0:00:27]} Bxe4 {[%emt 0:01:13]} 22. Qg5+ {[%emt 0:00:57]} Kh7 {[%emt 0:00:06]} 23. Qh5+ {[%emt 0:00:40]} Kg8 {[%emt 0:00:22]} 24. Bf6 {[%emt 0:00:19]} Ng6 {[%emt 0:01:33]} 25. Qh6 {[%emt 0:01:05]} Bxg2+ {[%emt 0:00:42]} 26. Kg1 {[%emt 0:00:20]} 1-0

[Event "ESP-chT 2nd Division 2019"]
[Site "Linares"]
[Date "2019.08.20"]
[Round "3.14"]
[White "Vela Frago, Alberto"]
[Black "Nieves Cabanes, Jose Manuel"]
[Result "1/2-1/2"]
[ECO "C47"]
[WhiteElo "2155"]
[BlackElo "2311"]
[Annotator "NA"]
[PlyCount "68"]
[EventDate "2019.08.19"]
[EventType "team-tourn"]
[EventCountry "ESP"]
[SourceTitle "playchess.com"]
[Source "ChessBase"]
[SourceQuality "1"]
[TimeControl "5400+30"]

1. e4 {[%emt 0:00:00]} e5 {[%emt 0:00:00]} 2. Nf3 {[%emt 0:00:00]} Nc6 {[%emt 0:00:00]} 3. Nc3 {[%emt 0:00:06]} Nf6 {[%emt 0:01:26]} 4. d4 {[%emt 0:00:21]} Bb4 {[%emt 0:02:33]} 5. Nxe5 {[%emt 0:00:17]} Qe7 {[%emt 0:01:57]} 6. Nxc6 {[%emt 0:04:19]} Qxe4+ {[%emt 0:00:38]} 7. Qe2 {[%emt 0:00:34]} dxc6 {[%emt 0:05:05]} 8. Bd2 {[%emt 0:02:06]} Qxe2+ {[%emt 0:03:27]} 9. Bxe2 {[%emt 0:00:18]} Bf5 {[%emt 0:01:16]} 10. O-O-O {[%emt 0:00:59]} O-O-O {[%emt 0:00:47]} 11. a3 {[%emt 0:04:00]} Be7 {[%emt 0:03:20]} 12. Bf4 {[%emt 0:01:52]} Ng4 {[%emt 0:03:32]} 13. Rhf1 {[%emt 0:04:16]} Rhe8 {[%emt 0:05:43]} 14. h3 {[%emt 0:01:44]} Nf6 {[%emt 0:00:05]} 15. Bf3 {[%emt 0:03:47]} Be6 {[%emt 0:03:13]} 16. g4 {[%emt 0:05:25]} h6 {[%emt 0:02:14]} 17. Rfe1 {[%emt 0:01:40]} Nd5 {[%emt 0:09:35]} 18. Nxd5 {[%emt 0:01:20]} Bxd5 {[%emt 0:01:14]} 19. Bxd5 {[%emt 0:00:19]} cxd5 {[%emt 0:00:27]} 20. c3 {[%emt 0:00:59]} Bh4 {[%emt 0:02:53]} 21. Bg3 {[%emt 0:05:26]} Bxg3 {[%emt 0:01:22]} 22. fxg3 {[%emt 0:00:02]} Kd7 {[%emt 0:00:44]} 23. Kd2 {[%emt 0:00:46]} a5 {[%emt 0:01:13]} 24. a4 {[%emt 0:00:48]} b6 {[%emt 0:02:11]} 25. Rxe8 {[%emt 0:02:37]} Rxe8 {[%emt 0:00:07]} 26. Re1 {[%emt 0:01:24]} Re6 {[%emt 0:02:38]} 27. Rf1 {[%emt 0:05:52]} Ke7 {[%emt 0:02:01]} 28. Kd3 {[%emt 0:00:50]} c5 {[%emt 0:05:55]} 29. b3 {[%emt 0:00:40]} Re4 {[%emt 0:01:24]} 30. Rf5 {[%emt 0:02:44]} cxd4 {[%emt 0:02:53]} 31. cxd4 {[%emt 0:01:30]} Ke6 {[%emt 0:03:08]} 32. Rf3 {[%emt 0:00:26]} g6 {[%emt 0:02:42]} 33. Re3 {[%emt 0:02:07]} Rxe3+ {[%emt 0:04:12]} 34. Kxe3 {[%emt 0:01:09]} g5 {[%emt 0:00:11] Ke4 Ke5+} 1/2-1/2

[Event "ESP-chT 2nd Division 2019"]
[Site "Linares"]
[Date "2019.08.20"]
[Round "3.15"]
[White "Ortega Sanchis, Angela"]
[Black "Roque Sola, Gisela"]
[Result "0-1"]
[ECO "C11"]
[WhiteElo "1675"]
[BlackElo "2048"]
[Annotator "NA"]
[PlyCount "60"]
[EventDate "2019.08.19"]
[EventType "team-tourn"]
[EventCountry "ESP"]
[SourceTitle "playchess.com"]
[Source "ChessBase"]
[SourceQuality "1"]
[TimeControl "5400+30"]

1. e4 {[%emt 0:00:00]} e6 {[%emt 0:00:00]} 2. d4 {[%emt 0:00:00]} d5 {[%emt 0:00:00]} 3. Nc3 {[%emt 0:00:00]} Nf6 {[%emt 0:00:05]} 4. e5 {[%emt 0:00:00]} Nfd7 {[%emt 0:00:10]} 5. f4 {[%emt 0:00:02]} c5 {[%emt 0:00:42]} 6. Nf3 {[%emt 0:00:13]} Nc6 {[%emt 0:00:17]} 7. Be3 {[%emt 0:00:25]} Be7 {[%emt 0:01:01]} 8. Be2 {[%emt 0:01:22]} a6 {[%emt 0:06:52]} 9. Qd2 {[%emt 0:02:24]} b5 {[%emt 0:04:22]} 10. a3 {[%emt 0:02:20]} O-O {[%emt 0:03:33]} 11. O-O {[%emt 0:01:07]} Qb6 {[%emt 0:02:23]} 12. Nd1 {[%emt 0:09:32]} cxd4 {[%emt 0:01:27]} 13. Nxd4 {[%emt 0:00:57]} Nxd4 {[%emt 0:06:10]} 14. Bxd4 {[%emt 0:00:27]} Qxd4+ {[%emt 0:04:03]} 15. Qxd4 {[%emt 0:00:01]} Bc5 {[%emt 0:00:08]} 16. Qxc5 {[%emt 0:08:38]} Nxc5 {[%emt 0:00:15]} 17. Ne3 {[%emt 0:00:42]} Bd7 {[%emt 0:02:09]} 18. Rad1 {[%emt 0:03:26]} Rac8 {[%emt 0:03:59]} 19. b3 {[%emt 0:04:45]} Ne4 {[%emt 0:03:04]} 20. Bf3 {[%emt 0:02:33]} Nc3 {[%emt 0:01:27]} 21. Rd4 {[%emt 0:02:35]} Kh8 {[%emt 0:05:05]} 22. Rd2 {[%emt 0:22:49]} Rfd8 {[%emt 0:03:27]} 23. Bg4 {[%emt 0:08:23]} f6 {[%emt 0:11:50]} 24. f5 {[%emt 0:07:33]} exf5 {[%emt 0:01:29]} 25. Bxf5 {[%emt 0:03:10]} fxe5 {[%emt 0:01:07]} 26. Bxd7 {[%emt 0:05:21]} Rxd7 {[%emt 0:00:34]} 27. Rf5 {[%emt 0:00:50]} Re8 {[%emt 0:01:54]} 28. Rd3 {[%emt 0:06:44]} d4 {[%emt 0:05:39]} 29. Nd1 {[%emt 0:07:13]} e4 {[%emt 0:03:27]} 30. Rd2 {[%emt 0:00:54]} e3 {[%emt 0:00:09]} 0-1

[Event "ESP-chT 2nd Division 2019"]
[Site "Linares"]
[Date "2019.08.20"]
[Round "3.16"]
[White "Suarez Gomez, Julio"]
[Black "Fernandez Barrera, Victor"]
[Result "1-0"]
[ECO "C05"]
[WhiteElo "2433"]
[BlackElo "2301"]
[Annotator "NA"]
[PlyCount "57"]
[EventDate "2019.08.19"]
[EventType "team-tourn"]
[EventCountry "ESP"]
[SourceTitle "playchess.com"]
[Source "ChessBase"]
[SourceQuality "1"]
[TimeControl "5400+30"]

1. e4 {[%emt 0:00:00]} e6 {[%emt 0:00:00]} 2. d4 {[%emt 0:00:00]} d5 {[%emt 0:00:00]} 3. Nd2 {[%emt 0:00:00]} Nf6 {[%emt 0:01:36]} 4. e5 {[%emt 0:00:00]} Nfd7 {[%emt 0:00:06]} 5. c3 {[%emt 0:00:20]} c5 {[%emt 0:00:07]} 6. f4 {[%emt 0:00:06]} Nc6 {[%emt 0:02:32]} 7. Ndf3 {[%emt 0:00:37]} cxd4 {[%emt 0:02:49]} 8. cxd4 {[%emt 0:00:33]} Bb4+ {[%emt 0:02:23]} 9. Kf2 {[%emt 0:00:21]} Qb6 {[%emt 0:01:00]} 10. g3 {[%emt 0:02:21]} g5 {[%emt 0:09:18]} 11. fxg5 {[%emt 0:31:36]} Ndxe5 {[%emt 0:04:23]} 12. Nxe5 {[%emt 0:00:11]} Nxe5 {[%emt 0:00:08]} 13. Kg2 {[%emt 0:00:35]} Nc6 {[%emt 0:03:41]} 14. Nf3 {[%emt 0:00:05]} Bd6 {[%emt 0:00:52]} 15. Rb1 {[%emt 0:04:34]} Bd7 {[%emt 0:03:52]} 16. b4 {[%emt 0:00:49]} O-O-O {[%emt 0:08:43]} 17. b5 {[%emt 0:03:33]} Ne7 {[%emt 0:10:10]} 18. Bd2 {[%emt 0:03:50]} Kb8 {[%emt 0:08:46]} 19. Qa4 {[%emt 0:13:13]} Bc7 {[%emt 0:03:49]} 20. Bd3 {[%emt 0:00:23]} Rc8 {[%emt 0:08:37]} 21. Rhc1 {[%emt 0:00:35]} Ng6 {[%emt 0:02:06]} 22. Rc6 {[%emt 0:12:21]} bxc6 {[%emt 0:05:50]} 23. bxc6 {[%emt 0:00:04]} Be8 {[%emt 0:00:34]} 24. Bxg6 {[%emt 0:00:07]} hxg6 {[%emt 0:00:24]} 25. Rxb6+ {[%emt 0:00:04]} Bxb6 {[%emt 0:00:55]} 26. Ne5 {[%emt 0:00:04]} Ka8 {[%emt 0:02:37]} 27. Bf4 {[%emt 0:05:26]} Rg8 {[%emt 0:03:02]} 28. h4 {[%emt 0:01:29]} Rh8 {[%emt 0:00:15]} 29. Qb5 {[%emt 0:02:32]} 1-0

[Event "ESP-chT 2nd Division 2019"]
[Site "Linares"]
[Date "2019.08.20"]
[Round "3.17"]
[White "Buendia Pinar, Alvaro"]
[Black "Reinaldo Castineira, Roi"]
[Result "0-1"]
[ECO "A40"]
[WhiteElo "2277"]
[BlackElo "2467"]
[Annotator "ChessBase"]
[PlyCount "68"]
[EventDate "2019.08.19"]
[EventType "team-tourn"]
[EventCountry "ESP"]
[SourceTitle "playchess.com"]
[Source "ChessBase"]
[SourceQuality "1"]
[TimeControl "5400+30"]

1. d4 {[%emt 0:00:21]} e6 {[%emt 0:00:00]} 2. c4 c5 {[%emt 0:00:00]} 3. d5 {[%emt 0:01:06]} exd5 4. cxd5 {[%emt 0:00:14]} d6 {[%emt 0:00:32]} 5. Nc3 {[%emt 0:00:53]} g6 {[%emt 0:00:07]} 6. Nf3 {[%emt 0:01:18]} a6 {[%emt 0:00:07]} 7. Bf4 b5 {[%emt 0:08:09]} 8. a4 {[%emt 0:04:08]} b4 {[%emt 0:01:03]} 9. Ne4 {[%emt 0:00:13]} Nf6 10. Nfd2 Nxe4 {[%emt 0:07:50]} 11. Nxe4 {[%emt 0:00:19]} Be7 {[%emt 0:07:24]} 12. Bh6 {[%emt 0:21:46]} f5 {[%emt 0:00:06]} 13. Nd2 {[%emt 0:00:19]} Bf6 {[%emt 0:00:29]} 14. Nc4 {[%emt 0:01:36]} a5 {[%emt 0:03:46]} 15. Qd2 {[%emt 0:03:12]} Ba6 {[%emt 0:06:28]} 16. Qe3+ Qe7 17. Nxd6+ {[%emt 0:19:31]} Kd7 {[%emt 0:00:41]} 18. Qxe7+ {[%emt 0:00:59]} Kxe7 19. Bf4 {[%emt 0:00:03]} Bxb2 {[%emt 0:02:00]} 20. Rb1 {[%emt 0:00:04]} Bc3+ {[%emt 0:00:37]} 21. Kd1 {[%emt 0:06:08]} Rd8 {[%emt 0:01:42]} 22. Bg5+ {[%emt 0:00:30]} Bf6 {[%emt 0:00:26]} 23. Bxf6+ {[%emt 0:00:08]} Kxf6 {[%emt 0:00:04]} 24. Nb5 {[%emt 0:00:18]} Bxb5 {[%emt 0:02:02]} 25. axb5 {[%emt 0:00:06]} Rxd5+ {[%emt 0:00:32]} 26. Kc2 {[%emt 0:00:04]} c4 {[%emt 0:04:16]} 27. e3 {[%emt 0:06:05]} Rxb5 {[%emt 0:00:27]} 28. Bxc4 {[%emt 0:00:45]} Rc5 {[%emt 0:00:07]} 29. Kb3 {[%emt 0:00:16]} Nc6 {[%emt 0:02:58]} 30. Rhc1 {[%emt 0:00:27]} a4+ {[%emt 0:01:18]} 31. Ka2 {[%emt 0:00:03]} Rd8 {[%emt 0:00:57]} 32. Bb5 {[%emt 0:00:28]} Rd2+ {[%emt 0:01:21]} 33. Rb2 {[%emt 0:00:20]} Rxb2+ {[%emt 0:00:12]} 34. Kxb2 {[%emt 0:00:08]} a3+ {[%emt 0:00:03]} 0-1

[Event "ESP-chT 2nd Division 2019"]
[Site "Linares"]
[Date "2019.08.20"]
[Round "3.18"]
[White "Laiz Ibanez, Hector"]
[Black "Jimenez Martinez, Jose Vicente"]
[Result "1/2-1/2"]
[ECO "A04"]
[WhiteElo "2274"]
[BlackElo "2264"]
[Annotator "NA"]
[PlyCount "65"]
[EventDate "2019.08.19"]
[EventType "team-tourn"]
[EventCountry "ESP"]
[SourceTitle "playchess.com"]
[Source "ChessBase"]
[SourceQuality "1"]
[TimeControl "5400+30"]

1. Nf3 {[%emt 0:00:00]} g6 {[%emt 0:00:22]} 2. g3 {[%emt 0:00:00]} Bg7 {[%emt 0:00:05]} 3. d4 {[%emt 0:00:00]} d6 {[%emt 0:00:14]} 4. Bg2 {[%emt 0:00:01]} Nf6 {[%emt 0:00:30]} 5. b3 {[%emt 0:00:15]} b5 {[%emt 0:01:16]} 6. Bb2 {[%emt 0:10:48]} Bb7 {[%emt 0:00:16]} 7. Nbd2 {[%emt 0:00:52]} O-O {[%emt 0:01:39]} 8. c4 {[%emt 0:02:54]} b4 {[%emt 0:03:01]} 9. Qc2 {[%emt 0:09:55]} c5 {[%emt 0:09:53]} 10. d5 {[%emt 0:04:50]} e5 {[%emt 0:00:14]} 11. dxe6 {[%emt 0:02:51]} fxe6 {[%emt 0:00:08]} 12. O-O {[%emt 0:01:01]} Qe7 {[%emt 0:04:43]} 13. Rad1 {[%emt 0:14:32]} Nbd7 {[%emt 0:03:28]} 14. Nh4 {[%emt 0:09:48]} Bxg2 {[%emt 0:04:19]} 15. Nxg2 {[%emt 0:00:04]} d5 {[%emt 0:00:19]} 16. cxd5 {[%emt 0:07:07]} exd5 {[%emt 0:01:02]} 17. Nf3 {[%emt 0:01:11]} Rac8 {[%emt 0:01:53]} 18. Nf4 {[%emt 0:01:31]} Qd6 {[%emt 0:10:29]} 19. Qd3 {[%emt 0:06:57]} d4 {[%emt 0:12:04]} 20. Qc4+ {[%emt 0:04:03]} Kh8 {[%emt 0:00:23]} 21. Qe6 {[%emt 0:02:39]} Qxe6 {[%emt 0:04:51]} 22. Nxe6 {[%emt 0:00:06]} Rfe8 {[%emt 0:00:05]} 23. Nxg7 {[%emt 0:00:12]} Rxe2 {[%emt 0:01:29]} 24. Bxd4 {[%emt 0:01:40]} cxd4 {[%emt 0:07:07]} 25. Nxd4 {[%emt 0:00:12]} Rxa2 {[%emt 0:00:11]} 26. Nge6 {[%emt 0:00:05]} Ne4 {[%emt 0:03:19]} 27. Ra1 {[%emt 0:01:00]} Nc3 {[%emt 0:02:43]} 28. Rfc1 {[%emt 0:03:42]} Nb6 {[%emt 0:00:11]} 29. Rxa2 {[%emt 0:02:05]} Nxa2 {[%emt 0:00:05]} 30. Rxc8+ {[%emt 0:00:10]} Nxc8 {[%emt 0:00:02]} 31. Nc6 {[%emt 0:03:22]} Kg8 {[%emt 0:05:27]} 32. Kf1 {[%emt 0:02:08]} Kf7 {[%emt 0:05:16]} 33. Ned4 {[%emt 0:00:52]} 1/2-1/2

[Event "ESP-chT 2nd Division 2019"]
[Site "Linares"]
[Date "2019.08.20"]
[Round "3.19"]
[White "Alvarez Serrano, Carlos"]
[Black "Abal Cores, Lucas"]
[Result "1/2-1/2"]
[ECO "A80"]
[WhiteElo "2244"]
[BlackElo "2290"]
[Annotator "NA"]
[PlyCount "76"]
[EventDate "2019.08.19"]
[EventType "team-tourn"]
[EventCountry "ESP"]
[SourceTitle "playchess.com"]
[Source "ChessBase"]
[SourceQuality "1"]
[TimeControl "5400+30"]

1. d4 {[%emt 0:00:39]} f5 {[%emt 0:00:00]} 2. Nf3 {[%emt 0:00:05]} Nf6 {[%emt 0:00:00]} 3. g3 {[%emt 0:00:05]} g6 {[%emt 0:00:14]} 4. Bg2 {[%emt 0:00:05]} Bg7 {[%emt 0:00:05]} 5. O-O {[%emt 0:00:05]} O-O {[%emt 0:00:09]} 6. Nc3 {[%emt 0:00:04]} d5 {[%emt 0:00:05]} 7. Bf4 {[%emt 0:02:09]} c6 {[%emt 0:00:06]} 8. Qc1 {[%emt 0:00:49]} Re8 {[%emt 0:01:36]} 9. Nd1 {[%emt 0:03:06]} Nbd7 {[%emt 0:09:28]} 10. c4 {[%emt 0:00:15]} e6 {[%emt 0:00:06]} 11. b3 {[%emt 0:00:07]} Ne4 {[%emt 0:01:06]} 12. Nb2 {[%emt 0:02:18]} g5 {[%emt 0:15:33]} 13. Be5 {[%emt 0:14:38]} Nxe5 {[%emt 0:07:12]} 14. Nxe5 {[%emt 0:00:10]} dxc4 {[%emt 0:01:08]} 15. Nbxc4 {[%emt 0:09:15]} h6 {[%emt 0:14:12]} 16. Bxe4 {[%emt 0:05:20]} fxe4 {[%emt 0:00:02]} 17. Qe3 {[%emt 0:00:10]} Qd5 {[%emt 0:02:55]} 18. Qc3 {[%emt 0:12:15]} c5 {[%emt 0:09:06]} 19. e3 {[%emt 0:02:16]} b5 {[%emt 0:02:06]} 20. Na5 {[%emt 0:00:33]} Ba6 {[%emt 0:12:33]} 21. b4 {[%emt 0:04:47]} Rac8 {[%emt 0:01:21]} 22. Qb2 c4 {[%emt 0:02:07]} 23. Rac1 {[%emt 0:04:59]} Red8 {[%emt 0:01:09]} 24. Rfd1 {[%emt 0:02:47]} Bxe5 {[%emt 0:02:48]} 25. dxe5 {[%emt 0:00:02]} Qxd1+ {[%emt 0:00:08]} 26. Rxd1 {[%emt 0:00:01]} Rxd1+ {[%emt 0:00:12]} 27. Kg2 {[%emt 0:00:01]} c3 {[%emt 0:02:47]} 28. Qc2 {[%emt 0:00:01]} Rd3 {[%emt 0:02:28]} 29. Nb3 {[%emt 0:00:00]} Rc4 {[%emt 0:01:07]} 30. Nc5 {[%emt 0:01:10]} Rd2 31. Qc1 Bc8 {[%emt 0:01:04]} 32. a3 {[%emt 0:05:29]} Kg7 33. h4 {[%emt 0:00:24]} Rd5 {[%emt 0:04:48]} 34. hxg5 {[%emt 0:00:52]} Rxe5 {[%emt 0:04:29]} 35. gxh6+ {[%emt 0:00:23]} Kxh6 {[%emt 0:00:43]} 36. g4 {[%emt 0:02:22]} Rg5 {[%emt 0:01:13]} 37. Qh1+ {[%emt 0:01:58]} Kg6 {[%emt 0:00:11]} 38. Qh8 {[%emt 0:00:06]} Rgxc5 {[%emt 0:00:09]} 1/2-1/2

[Event "ESP-chT 2nd Division 2019"]
[Site "Linares"]
[Date "2019.08.20"]
[Round "3.20"]
[White "Dorado Meijide, Andrea"]
[Black "Jimenez Fernandez, Rebeca"]
[Result "0-1"]
[ECO "B38"]
[WhiteElo "1762"]
[BlackElo "1928"]
[Annotator "NA"]
[PlyCount "66"]
[EventDate "2019.08.19"]
[EventType "team-tourn"]
[EventCountry "ESP"]
[SourceTitle "playchess.com"]
[Source "ChessBase"]
[SourceQuality "1"]
[TimeControl "5400+30"]

1. e4 {[%emt 0:00:00]} c5 {[%emt 0:00:00]} 2. Nf3 {[%emt 0:00:00]} Nc6 {[%emt 0:00:00]} 3. d4 {[%emt 0:00:00]} cxd4 {[%emt 0:00:00]} 4. Nxd4 {[%emt 0:00:00]} g6 {[%emt 0:00:00]} 5. c4 {[%emt 0:00:12]} Bg7 {[%emt 0:00:00]} 6. Be3 {[%emt 0:00:08]} d6 {[%emt 0:00:18]} 7. Nc3 {[%emt 0:00:16]} Nf6 {[%emt 0:00:06]} 8. Be2 {[%emt 0:00:11]} Bd7 {[%emt 0:00:16]} 9. h3 {[%emt 0:00:59]} O-O {[%emt 0:00:46]} 10. O-O {[%emt 0:00:07]} Nxd4 {[%emt 0:00:06]} 11. Bxd4 {[%emt 0:00:06]} Bc6 {[%emt 0:00:13]} 12. Qc2 {[%emt 0:01:09]} a5 {[%emt 0:00:56]} 13. Rad1 {[%emt 0:00:35]} Nd7 {[%emt 0:02:58]} 14. Bxg7 {[%emt 0:00:40]} Kxg7 {[%emt 0:00:06]} 15. Bg4 {[%emt 0:00:11]} Ne5 {[%emt 0:02:21]} 16. c5 {[%emt 0:02:43]} Nxg4 {[%emt 0:10:35]} 17. hxg4 {[%emt 0:00:17]} Bd7 {[%emt 0:01:54]} 18. cxd6 {[%emt 0:07:43]} Bxg4 {[%emt 0:00:51]} 19. f3 {[%emt 0:01:53]} Be6 {[%emt 0:02:10]} 20. dxe7 {[%emt 0:09:26]} Qxe7 {[%emt 0:00:29]} 21. Nd5 {[%emt 0:00:08]} Bxd5 {[%emt 0:06:59]} 22. Qc3+ {[%emt 0:01:11]} Kg8 {[%emt 0:05:20]} 23. Rxd5 {[%emt 0:00:29]} Rfc8 {[%emt 0:01:45]} 24. Qd2 {[%emt 0:02:40]} Rc5 {[%emt 0:08:51]} 25. Rd7 {[%emt 0:07:37]} Qf6 {[%emt 0:01:12]} 26. Rxb7 {[%emt 0:08:52]} Rd8 {[%emt 0:00:31]} 27. Qe3 {[%emt 0:16:30]} Rc2 {[%emt 0:01:22]} 28. Rb6 {[%emt 0:07:24]} Qh4 {[%emt 0:01:56]} 29. f4 {[%emt 0:08:47]} Rdd2 {[%emt 0:02:38]} 30. Qf3 {[%emt 0:00:02]} Rxg2+ {[%emt 0:02:02]} 31. Qxg2 {[%emt 0:00:06]} Rxg2+ {[%emt 0:00:05]} 32. Kxg2 {[%emt 0:00:08]} Qg4+ {[%emt 0:00:09]} 33. Kh2 {[%emt 0:02:52]} Qe2+ {[%emt 0:00:07]} 0-1